[Event "Torneo Nuevo Centro. Jornada 10"]
[Site "Chess.com"]
[Date "2020.08.21"]
[Round "6"]
[White "Valmaña Cantó, Jaime"]
[Black "Martínez Escandell, Alfonso"]
[Result "0-1"]
[WhiteElo "2352"]
[BlackElo "1888"]
[TimeControl "180+2"]
[EndTime "11:37:47 PDT"]
[Termination "Victoria de Alfonso10 por jaque mate"]

1. e4 {[%clk 0:02:16.2]} 1... c5 {[%clk 0:03:00.4]} 2. Nf3 {[%clk 0:02:16.7]}
2... e6 {[%clk 0:03:01.6]} 3. c3 {[%clk 0:02:17.5]} 3... Nc6 {[%clk 0:02:58.6]}
4. d4 {[%clk 0:02:17.2]} 4... cxd4 {[%clk 0:02:58.7]} 5. cxd4 {[%clk 0:02:19.1]}
5... d5 {[%clk 0:02:59.3]} 6. e5 {[%clk 0:02:16.9]} 6... Bd7 {[%clk 0:02:56.7]}
7. Nc3 {[%clk 0:02:16.7]} 7... Rc8 {[%clk 0:02:46.3]} 8. a3 {[%clk 0:02:15]}
8... Nge7 {[%clk 0:02:44.2]} 9. Bd3 {[%clk 0:02:07]} 9... Qb6 {[%clk 0:02:45.2]}
10. Ne2 {[%clk 0:02:05.7]} 10... Nf5 {[%clk 0:02:42]} 11. Bxf5 {[%clk
0:02:05.6]} 11... exf5 {[%clk 0:02:43.5]} 12. O-O {[%clk 0:02:06.2]} 12... Be7
{[%clk 0:02:35.2]} 13. Bg5 {[%clk 0:02:03.6]} 13... Bxg5 {[%clk 0:02:26.8]} 14.
Nxg5 {[%clk 0:02:05.5]} 14... Qxb2 {[%clk 0:02:26.4]} 15. Rb1 {[%clk 0:02:05.9]}
15... Qxa3 {[%clk 0:02:24.5]} 16. Rxb7 {[%clk 0:01:59.4]} 16... Nd8 {[%clk
0:02:25.3]} 17. Rb3 {[%clk 0:01:55.2]} 17... Qe7 {[%clk 0:02:23.3]} 18. Qd2
{[%clk 0:01:53.3]} 18... O-O {[%clk 0:02:19.7]} 19. h4 {[%clk 0:01:52.6]} 19...
f6 {[%clk 0:02:16]} 20. Nf3 {[%clk 0:01:49.5]} 20... fxe5 {[%clk 0:02:08.8]} 21.
dxe5 {[%clk 0:01:48.2]} 21... Be6 {[%clk 0:02:07]} 22. Nf4 {[%clk 0:01:44.7]}
22... d4 {[%clk 0:01:58.9]} 23. Rb4 {[%clk 0:01:32.9]} 23... Nc6 {[%clk
0:01:56.1]} 24. Ra4 {[%clk 0:01:33.7]} 24... Bb3 {[%clk 0:01:50.7]} 25. Raa1
{[%clk 0:01:22.5]} 25... Nxe5 {[%clk 0:01:47.9]} 26. Nxd4 {[%clk 0:01:21.5]}
26... Bc4 {[%clk 0:01:44.9]} 27. Rfe1 {[%clk 0:01:20.3]} 27... Qd6 {[%clk
0:01:36.3]} 28. Rxa7 {[%clk 0:01:09.5]} 28... Rcd8 {[%clk 0:01:30.9]} 29. Nh5
{[%clk 0:00:40.6]} 29... Nf7 {[%clk 0:01:03.4]} 30. Rd1 {[%clk 0:00:16.9]} 30...
Qc5 {[%clk 0:01:04.2]} 31. Ra4 {[%clk 0:00:09.6]} 31... Bb3 {[%clk 0:00:58.2]}
32. Nxb3 {[%clk 0:00:07.6]} 32... Rxd2 {[%clk 0:00:58.2]} 33. Nxd2 {[%clk
0:00:08.3]} 33... Qc2 {[%clk 0:00:53.9]} 34. Raa1 {[%clk 0:00:06.4]} 34... Ne5
{[%clk 0:00:54.6]} 35. Rac1 {[%clk 0:00:07]} 35... Qa4 {[%clk 0:00:50.1]} 36.
Nf1 {[%clk 0:00:07.9]} 36... Qa8 {[%clk 0:00:46.1]} 37. Nf4 {[%clk 0:00:08.7]}
37... Ng4 {[%clk 0:00:43.3]} 38. Ng3 {[%clk 0:00:08.7]} 38... Qa7 {[%clk
0:00:40.5]} 39. Rd2 {[%clk 0:00:08.1]} 39... Qe7 {[%clk 0:00:35.3]} 40. h5
{[%clk 0:00:07.6]} 40... Qg5 {[%clk 0:00:32.3]} 41. Nge2 {[%clk 0:00:09]} 41...
Qh4 {[%clk 0:00:29]} 42. g3 {[%clk 0:00:07.2]} 42... Qh2+ {[%clk 0:00:28.4]} 43.
Kf1 {[%clk 0:00:08.6]} 43... Qxf2# {[%clk 0:00:27.9]} 0

[Event "Torneo Nuevo Centro. Jornada 10"]
[Site "Chess.com"]
[Date "2020.08.21"]
[Round "6"]
[White "Gimenez Saiz, Jose Raul"]
[Black "Donate Moreno, Silvia"]
[Result "0-1"]
[WhiteElo "1880"]
[BlackElo "1834"]
[TimeControl "180+2"]
[EndTime "11:37:47 PDT"]
[Termination "Victoria de monetesSAL por tiempo"]

1. d4 {[%clk 0:03:00]} 1... Nf6 {[%clk 0:03:00.8]} 2. e3 {[%clk 0:02:59.7]} 2...
g6 {[%clk 0:03:00.1]} 3. Bd3 {[%clk 0:03:00.7]} 3... Bg7 {[%clk 0:03:01.2]} 4.
f4 {[%clk 0:03:02.2]} 4... d6 {[%clk 0:03:00.9]} 5. Nf3 {[%clk 0:03:03.2]} 5...
O-O {[%clk 0:03:01.8]} 6. O-O {[%clk 0:03:04.4]} 6... Nbd7 {[%clk 0:03:02.9]} 7.
Nbd2 {[%clk 0:03:04.7]} 7... b6 {[%clk 0:03:04.1]} 8. e4 {[%clk 0:03:02.7]} 8...
Bb7 {[%clk 0:03:04.9]} 9. e5 {[%clk 0:03:01.9]} 9... Ne8 {[%clk 0:03:04.5]} 10.
c3 {[%clk 0:02:57]} 10... c5 {[%clk 0:03:04.4]} 11. Nc4 {[%clk 0:02:53.2]} 11...
d5 {[%clk 0:02:57.7]} 12. Ncd2 {[%clk 0:02:48.7]} 12... cxd4 {[%clk 0:02:54.9]}
13. Nxd4 {[%clk 0:02:43.5]} 13... e6 {[%clk 0:02:50.7]} 14. N2f3 {[%clk
0:02:29.8]} 14... Nc5 {[%clk 0:02:50.1]} 15. Bc2 {[%clk 0:02:30.1]} 15... Qc7
{[%clk 0:02:48.6]} 16. Qe2 {[%clk 0:02:23.5]} 16... Rc8 {[%clk 0:02:38.6]} 17.
Nb5 {[%clk 0:02:11]} 17... Qb8 {[%clk 0:02:38.4]} 18. a4 {[%clk 0:02:07.2]}
18... a6 {[%clk 0:02:31.5]} 19. Nbd4 {[%clk 0:02:06.3]} 19... Nc7 {[%clk
0:02:29.9]} 20. Kh1 {[%clk 0:02:03]} 20... Ne4 {[%clk 0:02:28.7]} 21. Ng5 {[%clk
0:01:57.2]} 21... Qa8 {[%clk 0:02:18.6]} 22. Nxe4 {[%clk 0:01:56.4]} 22... dxe4
{[%clk 0:02:19]} 23. Be3 {[%clk 0:01:47.4]} 23... Qb8 {[%clk 0:02:00.9]} 24. a5
{[%clk 0:01:39.7]} 24... bxa5 {[%clk 0:01:55.8]} 25. Rxa5 {[%clk 0:01:40]} 25...
Nd5 {[%clk 0:01:56.1]} 26. Bxe4 {[%clk 0:01:22.1]} 26... Nxc3 {[%clk 0:01:47.6]}
27. bxc3 {[%clk 0:01:12.7]} 27... Bxe4 {[%clk 0:01:47.7]} 28. Bd2 {[%clk
0:01:08.3]} 28... Bb7 {[%clk 0:01:46.2]} 29. Rb1 {[%clk 0:01:06.8]} 29... Qc7
{[%clk 0:01:43]} 30. h3 {[%clk 0:00:51.2]} 30... Rfd8 {[%clk 0:01:43.2]} 31. Qe1
{[%clk 0:00:37.5]} 31... Qe7 {[%clk 0:01:32.4]} 32. Ra2 {[%clk 0:00:32.4]} 32...
Bf8 {[%clk 0:01:30.5]} 33. Rab2 {[%clk 0:00:32.9]} 33... Bd5 {[%clk 0:01:27.1]}
34. Rb6 {[%clk 0:00:30.9]} 34... Qa7 {[%clk 0:01:17]} 35. Qe2 {[%clk 0:00:30.6]}
35... Bc4 {[%clk 0:01:13.4]} 36. Qf3 {[%clk 0:00:24.5]} 36... Bd5 {[%clk
0:01:09.1]} 37. Qe2 {[%clk 0:00:24.7]} 37... Rc4 {[%clk 0:01:09.6]} 38. Nc2
{[%clk 0:00:17]} 38... Bc5 {[%clk 0:01:08.4]} 39. Ne3 {[%clk 0:00:17.2]} 39...
Re4 {[%clk 0:01:04]} 40. Qxa6 {[%clk 0:00:14.4]} 40... Qxa6 {[%clk 0:00:59.6]}
41. Rxa6 {[%clk 0:00:14.3]} 41... Bxe3 {[%clk 0:01:00.3]} 42. Bxe3 {[%clk
0:00:14.5]} 42... Rxe3 {[%clk 0:01:02.2]} 43. Rd6 {[%clk 0:00:11]} 43... Rc8
{[%clk 0:00:58.9]} 44. Kh2 {[%clk 0:00:03.3]} 44... Rexc3 {[%clk 0:00:59]} 0

[Event "Torneo Nuevo Centro. Jornada 10"]
[Site "Chess.com"]
[Date "2020.08.21"]
[Round "6"]
[White "Gracia Calvo, Andrés"]
[Black "Pedros Viudes, Santiago"]
[Result "0-1"]
[WhiteElo "1803"]
[BlackElo "1929"]
[TimeControl "180+2"]
[EndTime "11:37:53 PDT"]
[Termination "Victoria de ElGatoKamsky por abandono"]

1. d4 {[%clk 0:03:01.9]} 1... Nf6 {[%clk 0:03:01]} 2. Nf3 {[%clk 0:03:02.6]}
2... d5 {[%clk 0:03:02]} 3. Bf4 {[%clk 0:03:03.7]} 3... c5 {[%clk 0:03:02.5]} 4.
e3 {[%clk 0:03:04.5]} 4... Nc6 {[%clk 0:03:01.7]} 5. c3 {[%clk 0:03:05.1]} 5...
Qb6 {[%clk 0:03:02.8]} 6. Qc1 {[%clk 0:03:03.1]} 6... cxd4 {[%clk 0:02:54.8]} 7.
exd4 {[%clk 0:03:03]} 7... Bf5 {[%clk 0:02:55.8]} 8. Nbd2 {[%clk 0:02:57.8]}
8... h6 {[%clk 0:02:54]} 9. h3 {[%clk 0:02:57.5]} 9... Rc8 {[%clk 0:02:54.8]}
10. Ne5 {[%clk 0:02:57.3]} 10... Nb4 {[%clk 0:02:45.7]} 11. Qd1 {[%clk
0:02:44.3]} 11... Nc2+ {[%clk 0:02:20.3]} 12. Ke2 {[%clk 0:02:34.1]} 12... Nxa1
{[%clk 0:01:47.8]} 13. Qa4+ {[%clk 0:02:27]} 13... Bd7 {[%clk 0:01:26.5]} 14.
Qd1 {[%clk 0:02:15.5]} 14... Qxb2 {[%clk 0:01:20.6]} 15. Kf3 {[%clk 0:01:53.3]}
15... Qxc3+ {[%clk 0:01:17.2]} 16. Be3 {[%clk 0:01:52.3]} 16... Nc2 {[%clk
0:01:04.5]} 17. Nxd7 {[%clk 0:01:40.1]} 17... Nxd4+ {[%clk 0:00:53.5]} 18. Kg3
{[%clk 0:01:33.7]} 18... Nxd7 {[%clk 0:00:46.9]} 19. Qa4 {[%clk 0:01:29.2]}
19... Nf5+ {[%clk 0:00:29.3]} 20. Kf3 {[%clk 0:01:22.5]} 20... Nxe3 {[%clk
0:00:18.6]} 21. fxe3 {[%clk 0:01:20.5]} 21... Qf6+ {[%clk 0:00:18.2]} 22. Ke2
{[%clk 0:01:19]} 22... e6 {[%clk 0:00:19.2]} 23. g4 {[%clk 0:01:14.9]} 23... Bd6
{[%clk 0:00:19.5]} 24. Nf3 {[%clk 0:01:06.7]} 24... Qe7 {[%clk 0:00:18]} 25. Kf2
{[%clk 0:01:01.2]} 25... O-O {[%clk 0:00:17.8]} 26. Bd3 {[%clk 0:00:57.9]} 26...
Bc5 {[%clk 0:00:18.7]} 27. h4 {[%clk 0:00:53.5]} 27... e5 {[%clk 0:00:19.4]} 28.
Bf5 {[%clk 0:00:49.5]} 28... Rc7 {[%clk 0:00:14.5]} 29. g5 {[%clk 0:00:40.5]}
29... e4 {[%clk 0:00:13.2]} 30. Nd2 {[%clk 0:00:30.8]} 30... g6 {[%clk
0:00:12.4]} 31. Bxd7 {[%clk 0:00:22.3]} 31... Qxd7 {[%clk 0:00:13.1]} 32. Qb3
{[%clk 0:00:20]} 32... h5 {[%clk 0:00:12.9]} 33. Rc1 {[%clk 0:00:15.3]} 33...
Rfc8 {[%clk 0:00:12.8]} 34. Rb1 {[%clk 0:00:14.3]} 34... Qh3 {[%clk 0:00:10.5]}
35. Nf1 {[%clk 0:00:13.4]} 35... Bb6 {[%clk 0:00:09.2]} 36. Qxd5 {[%clk
0:00:11]} 36... Rc2+ {[%clk 0:00:10.2]} 37. Ke1 {[%clk 0:00:11.2]} 37... Qxh4+
{[%clk 0:00:09.9]} 38. Kd1 {[%clk 0:00:10.1]} 38... Qg4+ {[%clk 0:00:10.9]} 0

[Event "Torneo Nuevo Centro. Jornada 10"]
[Site "Chess.com"]
[Date "2020.08.21"]
[Round "6"]
[White "Conejero Martínez, Víctor"]
[Black "Beneyto de Ramon, Guillermo"]
[Result "0-1"]
[WhiteElo "1407"]
[BlackElo "1652"]
[TimeControl "180+2"]
[EndTime "11:37:55 PDT"]
[Termination "Victoria de GUILLETE por tiempo"]

1. d4 {[%clk 0:03:01.9]} 1... d5 {[%clk 0:02:59.9]} 2. c4 {[%clk 0:03:02.5]}
2... e6 {[%clk 0:03:00.8]} 3. Nc3 {[%clk 0:03:03.3]} 3... c6 {[%clk 0:03:01.5]}
4. Bf4 {[%clk 0:03:01.2]} 4... dxc4 {[%clk 0:03:01.3]} 5. e3 {[%clk 0:03:00.9]}
5... b5 {[%clk 0:03:01.6]} 6. a4 {[%clk 0:02:59.1]} 6... Bb4 {[%clk 0:03:01.7]}
7. axb5 {[%clk 0:02:55.9]} 7... cxb5 {[%clk 0:03:00.2]} 8. Bxb8 {[%clk
0:02:47.5]} 8... Rxb8 {[%clk 0:03:00.5]} 9. Rxa7 {[%clk 0:02:48]} 9... Bb7
{[%clk 0:02:56.4]} 10. Nf3 {[%clk 0:02:36.1]} 10... Nf6 {[%clk 0:02:52.2]} 11.
Be2 {[%clk 0:02:32.8]} 11... O-O {[%clk 0:02:38.1]} 12. O-O {[%clk 0:02:32.9]}
12... Bxc3 {[%clk 0:02:35.7]} 13. bxc3 {[%clk 0:02:32.9]} 13... Ne4 {[%clk
0:02:34.8]} 14. Qc2 {[%clk 0:02:18.1]} 14... Qb6 {[%clk 0:02:18.7]} 15. Ra2
{[%clk 0:02:12.1]} 15... Nf6 {[%clk 0:02:14]} 16. Rb2 {[%clk 0:02:10.4]} 16...
Be4 {[%clk 0:02:09.2]} 17. Qd2 {[%clk 0:02:00.4]} 17... Bd5 {[%clk 0:02:05.1]}
18. Ne5 {[%clk 0:01:50.9]} 18... Qc7 {[%clk 0:01:56.4]} 19. Rfb1 {[%clk
0:01:43.3]} 19... Bc6 {[%clk 0:01:48.6]} 20. Nxc6 {[%clk 0:01:42.1]} 20... Qxc6
{[%clk 0:01:49]} 21. Bf3 {[%clk 0:01:42.6]} 21... Ne4 {[%clk 0:01:37.9]} 22. Qc2
{[%clk 0:01:35.6]} 22... f5 {[%clk 0:01:30.8]} 23. Rb4 {[%clk 0:00:52]} 23...
Rfc8 {[%clk 0:00:48]} 24. Qb2 {[%clk 0:00:42.3]} 24... Qa6 {[%clk 0:00:34.7]}
25. Bxe4 {[%clk 0:00:27.4]} 25... fxe4 {[%clk 0:00:25.1]} 26. Rxb5 {[%clk
0:00:27.1]} 26... Ra8 {[%clk 0:00:14.4]} 27. Rb6 {[%clk 0:00:22.9]} 27... Qa3
{[%clk 0:00:13.4]} 28. Rxe6 {[%clk 0:00:18.7]} 28... Qxb2 {[%clk 0:00:13.6]} 29.
g3 {[%clk 0:00:12.1]} 29... Qxb1+ {[%clk 0:00:14.4]} 30. Kg2 {[%clk 0:00:13.4]}
30... Ra2 {[%clk 0:00:14.4]} 31. Rxe4 {[%clk 0:00:13.3]} 31... Qxe4+ {[%clk
0:00:15.2]} 32. Kh3 {[%clk 0:00:12.9]} 32... Qf5+ {[%clk 0:00:15.4]} 33. g4
{[%clk 0:00:13.5]} 33... Rxf2 {[%clk 0:00:17.3]} 34. gxf5 {[%clk 0:00:13.8]}
34... Rxf5 {[%clk 0:00:19.1]} 35. Kg4 {[%clk 0:00:13.5]} 35... g6 {[%clk
0:00:20.1]} 36. e4 {[%clk 0:00:11.6]} 36... Rf7 {[%clk 0:00:20.8]} 37. e5 {[%clk
0:00:11.1]} 37... Rd8 {[%clk 0:00:19.9]} 38. e6 {[%clk 0:00:09.8]} 38... Re7
{[%clk 0:00:20.3]} 39. Kf4 {[%clk 0:00:04.2]} 39... Rxe6 {[%clk 0:00:19.6]} 0

[Event "Torneo Nuevo Centro. Jornada 10"]
[Site "Chess.com"]
[Date "2020.08.21"]
[Round "6"]
[White "Gutierrez Marco, Dario"]
[Black "Orts Tomás, Marc"]
[Result "0-1"]
[WhiteElo "1824"]
[BlackElo "1861"]
[TimeControl "180+2"]
[EndTime "11:38:03 PDT"]
[Termination "Victoria de Rock-Bishop29 por abandono"]

1. e4 {[%clk 0:03:01.9]} 1... c5 {[%clk 0:03:00.1]} 2. Nc3 {[%clk 0:03:01.3]}
2... Nc6 {[%clk 0:02:56.3]} 3. Bb5 {[%clk 0:03:01]} 3... g6 {[%clk 0:02:56.5]}
4. Bxc6 {[%clk 0:03:00.4]} 4... dxc6 {[%clk 0:02:57.8]} 5. d3 {[%clk 0:03:01.9]}
5... e5 {[%clk 0:02:58.1]} 6. f4 {[%clk 0:03:01.5]} 6... Bg7 {[%clk 0:02:56.2]}
7. Nf3 {[%clk 0:03:00.8]} 7... Qc7 {[%clk 0:02:53]} 8. fxe5 {[%clk 0:02:57.1]}
8... Bg4 {[%clk 0:02:48.2]} 9. Bf4 {[%clk 0:02:49.2]} 9... Bxf3 {[%clk
0:02:43.7]} 10. Qxf3 {[%clk 0:02:48.4]} 10... Bxe5 {[%clk 0:02:45.1]} 11. O-O
{[%clk 0:02:45.3]} 11... Bxf4 {[%clk 0:02:37.4]} 12. Qxf4 {[%clk 0:02:47.2]}
12... Qxf4 {[%clk 0:02:38.3]} 13. Rxf4 {[%clk 0:02:48.4]} 13... Ne7 {[%clk
0:02:38.8]} 14. Raf1 {[%clk 0:02:48.2]} 14... O-O {[%clk 0:02:40]} 15. Nd1
{[%clk 0:02:40.1]} 15... f5 {[%clk 0:02:39.5]} 16. Nc3 {[%clk 0:02:32.2]} 16...
Kg7 {[%clk 0:02:26.6]} 17. g3 {[%clk 0:02:16.4]} 17... Rae8 {[%clk 0:02:21.2]}
18. Kg2 {[%clk 0:02:11.2]} 18... Rd8 {[%clk 0:01:39.9]} 19. h4 {[%clk
0:02:01.7]} 19... c4 {[%clk 0:01:21.3]} 20. dxc4 {[%clk 0:01:58.4]} 20... Rd2+
{[%clk 0:01:20.4]} 21. R1f2 {[%clk 0:01:56.8]} 21... Rd4 {[%clk 0:01:14]} 22. b3
{[%clk 0:01:53.3]} 22... Rfd8 {[%clk 0:01:12]} 23. e5 {[%clk 0:01:17.5]} 23...
R4d7 {[%clk 0:00:56.1]} 24. Re2 {[%clk 0:01:02.3]} 24... Re8 {[%clk 0:00:55.6]}
25. Rf3 {[%clk 0:00:58.7]} 25... Nc8 {[%clk 0:00:51.1]} 26. Rd3 {[%clk
0:00:56.4]} 26... Rde7 {[%clk 0:00:50.6]} 27. Rde3 {[%clk 0:00:53.9]} 27... Nb6
{[%clk 0:00:48.5]} 28. Kf3 {[%clk 0:00:42.1]} 28... Nd7 {[%clk 0:00:46.5]} 29.
Kf4 {[%clk 0:00:42.3]} 29... Nc5 {[%clk 0:00:47.2]} 30. Na4 {[%clk 0:00:34.2]}
30... Ne6+ {[%clk 0:00:47.7]} 31. Kf3 {[%clk 0:00:32.8]} 31... Nd4+ {[%clk
0:00:49]} 32. Kf4 {[%clk 0:00:31]} 32... Nxe2+ {[%clk 0:00:49.7]} 33. Rxe2
{[%clk 0:00:32.9]} 33... Rd8 {[%clk 0:00:37.4]} 34. Nc5 {[%clk 0:00:31.5]} 34...
Rd4+ {[%clk 0:00:32.8]} 35. Ke3 {[%clk 0:00:22.7]} 35... Rxe5+ {[%clk 0:00:18]}
36. Kxd4 {[%clk 0:00:23.3]} 36... Rxe2 {[%clk 0:00:19.2]} 37. c3 {[%clk
0:00:18]} 37... b6 {[%clk 0:00:17.8]} 38. Nb7 {[%clk 0:00:12.2]} 38... Rxa2
{[%clk 0:00:17.8]} 39. Ke5 {[%clk 0:00:12.5]} 39... Rd2 {[%clk 0:00:16.1]} 40.
Nd6 {[%clk 0:00:12.4]} 40... Rd3 {[%clk 0:00:17.2]} 41. Nc8 {[%clk 0:00:11.6]}
41... Rxc3 {[%clk 0:00:18.1]} 42. Nxa7 {[%clk 0:00:13.5]} 42... Rxb3 {[%clk
0:00:19.1]} 43. Nxc6 {[%clk 0:00:14.2]} 43... Rxg3 {[%clk 0:00:19.5]} 44. Ne7
{[%clk 0:00:13.5]} 44... Rg4 {[%clk 0:00:20.3]} 45. Kd5 {[%clk 0:00:14.2]} 45...
Rxh4 {[%clk 0:00:20.1]} 46. Nc8 {[%clk 0:00:16.1]} 46... f4 {[%clk 0:00:20.4]}
47. Nxb6 {[%clk 0:00:18]} 47... f3 {[%clk 0:00:21.8]} 48. Nd7 {[%clk 0:00:16.6]}
48... f2 {[%clk 0:00:22.3]} 0

[Event "Torneo Nuevo Centro. Jornada 10"]
[Site "Chess.com"]
[Date "2020.08.21"]
[Round "6"]
[White "Yatseta Fernandez, Marc Kazymyr"]
[Black "Pardo Ruiz, Carlos"]
[Result "1/2-1/2"]
[WhiteElo "1459"]
[BlackElo "1679"]
[TimeControl "180+2"]
[EndTime "11:38:05 PDT"]
[Termination "Tablas por repeticiÃ³n"]

1. d4 {[%clk 0:03:01.9]} 1... c5 {[%clk 0:02:57.7]} 2. c4 {[%clk 0:03:03]} 2...
cxd4 {[%clk 0:02:55.9]} 3. Nf3 {[%clk 0:03:03.5]} 3... Nf6 {[%clk 0:02:53.9]} 4.
Nxd4 {[%clk 0:03:03.5]} 4... Nc6 {[%clk 0:02:54.3]} 5. e3 {[%clk 0:03:02.8]}
5... d6 {[%clk 0:02:53.5]} 6. Nc3 {[%clk 0:02:48.8]} 6... e5 {[%clk 0:02:46.7]}
7. Nf3 {[%clk 0:02:48.1]} 7... Be7 {[%clk 0:02:47]} 8. e4 {[%clk 0:02:43.4]}
8... O-O {[%clk 0:02:46.4]} 9. Bd3 {[%clk 0:02:42.4]} 9... b6 {[%clk 0:02:43]}
10. Be3 {[%clk 0:02:29.9]} 10... Bb7 {[%clk 0:02:40.6]} 11. h3 {[%clk 0:02:22]}
11... Rc8 {[%clk 0:02:34.1]} 12. Nd5 {[%clk 0:02:20.6]} 12... Nxd5 {[%clk
0:02:33.1]} 13. cxd5 {[%clk 0:02:21.8]} 13... Nb4 {[%clk 0:02:28.9]} 14. Bb1
{[%clk 0:02:08.4]} 14... Na6 {[%clk 0:02:09.2]} 15. O-O {[%clk 0:02:04]} 15...
Nc5 {[%clk 0:02:04.4]} 16. b4 {[%clk 0:01:56.8]} 16... Nd7 {[%clk 0:01:54.2]}
17. Bd3 {[%clk 0:01:44.6]} 17... Rc3 {[%clk 0:01:48.4]} 18. Qd2 {[%clk
0:01:40.9]} 18... Qc7 {[%clk 0:01:47]} 19. Rac1 {[%clk 0:01:36.6]} 19... Rc8
{[%clk 0:01:46.6]} 20. Rxc3 {[%clk 0:01:30.9]} 20... Qxc3 {[%clk 0:01:48.5]} 21.
Rc1 {[%clk 0:01:32]} 21... Qxd2 {[%clk 0:01:38.3]} 22. Rxc8+ {[%clk 0:01:32.5]}
22... Bxc8 {[%clk 0:01:38.6]} 23. Nxd2 {[%clk 0:01:30.9]} 23... Nb8 {[%clk
0:01:30.7]} 24. Kf1 {[%clk 0:01:18.3]} 24... Ba6 {[%clk 0:01:30.4]} 25. Ke2
{[%clk 0:01:15.2]} 25... Bxd3+ {[%clk 0:01:29.1]} 26. Kxd3 {[%clk 0:01:16.8]}
26... Kf8 {[%clk 0:01:29]} 27. Kc4 {[%clk 0:00:59.5]} 27... Ke8 {[%clk
0:01:26.2]} 28. a4 {[%clk 0:00:58.2]} 28... Kd7 {[%clk 0:01:23.3]} 29. Nb3
{[%clk 0:00:57]} 29... Bd8 {[%clk 0:01:12]} 30. a5 {[%clk 0:00:58.9]} 30... Kc8
{[%clk 0:01:11.4]} 31. axb6 {[%clk 0:00:46.7]} 31... axb6 {[%clk 0:01:10.4]} 32.
Nd2 {[%clk 0:00:33]} 32... Nd7 {[%clk 0:01:08.8]} 33. Kb5 {[%clk 0:00:30.1]}
33... Kb7 {[%clk 0:01:07.2]} 34. Nc4 {[%clk 0:00:30.8]} 34... Bc7 {[%clk
0:01:02]} 35. f4 {[%clk 0:00:25.7]} 35... f6 {[%clk 0:01:00.9]} 36. g4 {[%clk
0:00:23.1]} 36... g6 {[%clk 0:00:56.8]} 37. h4 {[%clk 0:00:18.5]} 37... exf4
{[%clk 0:00:48.1]} 38. Bxf4 {[%clk 0:00:18.9]} 38... Ne5 {[%clk 0:00:48.8]} 39.
Nxe5 {[%clk 0:00:14.6]} 39... fxe5 {[%clk 0:00:49.3]} 40. Bg5 {[%clk 0:00:14.8]}
40... Kb8 {[%clk 0:00:42.5]} 41. Be7 {[%clk 0:00:14.4]} 41... Kb7 {[%clk
0:00:42.1]} 42. h5 {[%clk 0:00:12.6]} 42... gxh5 {[%clk 0:00:42]} 43. gxh5
{[%clk 0:00:13.7]} 43... Bb8 {[%clk 0:00:41.8]} 44. h6 {[%clk 0:00:09.1]} 44...
Bc7 {[%clk 0:00:41.1]} 45. Bf8 {[%clk 0:00:09.1]} 45... Bb8 {[%clk 0:00:40.1]}
46. Be7 {[%clk 0:00:09.5]} 46... Bc7 {[%clk 0:00:40.8]} 47. Bf8 {[%clk
0:00:10.9]} 47... Bb8 {[%clk 0:00:36.2]} 48. Be7 {[%clk 0:00:11.3]} 1/2-1

[Event "Torneo Nuevo Centro. Jornada 10"]
[Site "Chess.com"]
[Date "2020.08.21"]
[Round "6"]
[White "Serarols Mabras, Bernat"]
[Black "Leal Uribe, Jhonny Alberto"]
[Result "1-0"]
[WhiteElo "2432"]
[BlackElo "2440"]
[TimeControl "180+2"]
[EndTime "11:38:22 PDT"]
[Termination "Victoria de bernatserarols por abandono"]

1. d4 {[%clk 0:02:09.5]} 1... d5 {[%clk 0:03:01.1]} 2. c4 {[%clk 0:02:10.7]}
2... e6 {[%clk 0:03:02.4]} 3. Nf3 {[%clk 0:02:11.8]} 3... Bb4+ {[%clk 0:03:03]}
4. Bd2 {[%clk 0:02:12.6]} 4... Bxd2+ {[%clk 0:03:03.3]} 5. Nbxd2 {[%clk
0:02:13.1]} 5... Nf6 {[%clk 0:03:04.9]} 6. g3 {[%clk 0:02:13.6]} 6... O-O {[%clk
0:03:06.3]} 7. Bg2 {[%clk 0:02:15]} 7... b6 {[%clk 0:03:07.4]} 8. O-O {[%clk
0:02:16.3]} 8... dxc4 {[%clk 0:03:06.3]} 9. Nxc4 {[%clk 0:02:17]} 9... Bb7
{[%clk 0:03:06.3]} 10. Rc1 {[%clk 0:02:18.2]} 10... Nbd7 {[%clk 0:03:07.5]} 11.
Nce5 {[%clk 0:01:38.8]} 11... Rc8 {[%clk 0:02:59.7]} 12. Nc6 {[%clk 0:01:37.7]}
12... Bxc6 {[%clk 0:02:58.6]} 13. Rxc6 {[%clk 0:01:38.1]} 13... Nb8 {[%clk
0:02:59.5]} 14. Rc4 {[%clk 0:01:35.8]} 14... b5 {[%clk 0:02:38]} 15. Rc3 {[%clk
0:01:29.4]} 15... Nd5 {[%clk 0:02:34.5]} 16. Rc1 {[%clk 0:01:29.9]} 16... Qe7
{[%clk 0:02:30.2]} 17. Ne1 {[%clk 0:01:30.3]} 17... Rfd8 {[%clk 0:02:29.9]} 18.
Nd3 {[%clk 0:01:31.7]} 18... Nb6 {[%clk 0:02:24.6]} 19. e3 {[%clk 0:01:30.7]}
19... N8d7 {[%clk 0:02:19.2]} 20. Qc2 {[%clk 0:01:27.1]} 20... e5 {[%clk
0:01:59.9]} 21. Nxe5 {[%clk 0:01:24]} 21... Nxe5 {[%clk 0:02:00.3]} 22. dxe5
{[%clk 0:01:25.7]} 22... Qxe5 {[%clk 0:02:01.9]} 23. Bb7 {[%clk 0:01:26.5]}
23... Rb8 {[%clk 0:01:59.4]} 24. Bc6 {[%clk 0:01:27.8]} 24... Nc4 {[%clk
0:01:53.5]} 25. b3 {[%clk 0:01:22.6]} 25... Rd2 {[%clk 0:01:43.5]} 26. Qc3
{[%clk 0:01:15.5]} 26... Qxc3 {[%clk 0:01:42.7]} 27. Rxc3 {[%clk 0:01:16.8]}
27... Ne5 {[%clk 0:01:43.8]} 28. Be4 {[%clk 0:01:11]} 28... Rxa2 {[%clk
0:01:26.6]} 29. Rxc7 {[%clk 0:01:09]} 29... Rd8 {[%clk 0:01:09.1]} 30. Rfc1
{[%clk 0:00:54.5]} 30... g6 {[%clk 0:01:05.9]} 31. Rc8 {[%clk 0:00:54.9]} 31...
Rxc8 {[%clk 0:01:06.4]} 32. Rxc8+ {[%clk 0:00:56]} 32... Kg7 {[%clk 0:01:07.8]}
33. h3 {[%clk 0:00:51.5]} 33... Ra3 {[%clk 0:00:47.9]} 34. Bd5 {[%clk
0:00:47.6]} 34... Nd3 {[%clk 0:00:42.6]} 35. Rc7 {[%clk 0:00:44]} 35... Nb4
{[%clk 0:00:38.9]} 36. Bxf7 {[%clk 0:00:38.9]} 36... Kf6 {[%clk 0:00:39.3]} 37.
Bg8 {[%clk 0:00:37.7]} 37... h5 {[%clk 0:00:40.1]} 38. Rb7 {[%clk 0:00:31.2]}
38... a6 {[%clk 0:00:35.6]} 39. Bh7 {[%clk 0:00:31.4]} 39... g5 {[%clk 0:00:36]}
40. Rb6+ {[%clk 0:00:29.8]} 40... Kg7 {[%clk 0:00:35.8]} 41. Be4 {[%clk
0:00:27.2]} 41... Rxb3 {[%clk 0:00:28.3]} 42. Rg6+ {[%clk 0:00:28.7]} 42... Kf7
{[%clk 0:00:28.3]} 43. Rxg5 {[%clk 0:00:29.5]} 43... Na2 {[%clk 0:00:24.5]} 44.
Bd5+ {[%clk 0:00:27.6]} 44... Kf6 {[%clk 0:00:25.1]} 45. Bxb3 {[%clk 0:00:26.6]}
45... Kxg5 {[%clk 0:00:23]} 46. Bxa2 {[%clk 0:00:27.9]} 46... a5 {[%clk
0:00:24.5]} 47. f4+ {[%clk 0:00:23.5]} 47... Kf5 {[%clk 0:00:22.4]} 48. Bb1+
{[%clk 0:00:22.8]} 48... Ke6 {[%clk 0:00:23.5]} 49. g4 {[%clk 0:00:23.3]} 49...
hxg4 {[%clk 0:00:24.1]} 50. hxg4 {[%clk 0:00:22.9]} 50... b4 {[%clk 0:00:25.6]}
51. Bc2 {[%clk 0:00:23.5]} 51... Kd5 {[%clk 0:00:25.7]} 52. g5 {[%clk
0:00:24.1]} 52... Kc4 {[%clk 0:00:25.9]} 53. g6 {[%clk 0:00:25.5]} 53... b3
{[%clk 0:00:26.2]} 54. Bxb3+ {[%clk 0:00:26.3]} 54... Kxb3 {[%clk 0:00:27]} 55.
g7 {[%clk 0:00:28]} 55... a4 {[%clk 0:00:28.9]} 56. g8=Q+ {[%clk 0:00:29.1]}
56... Kb2 {[%clk 0:00:29.7]} 57. Qc4 {[%clk 0:00:29.4]} 1